fUSD/lending_fUSD_20250609
["ID","MTS","AMOUNT","RATE_DAILY","PERIOD"]
[365143283,1749489048312,-156.68372719,0.00019506,2]
[365143284,1749489048321,-490.0,0.00019506,2]
[365143285,1749489048331,-417.09,0.00019506,2]
[365143286,1749489048341,-490.0,0.00019506,2]
[365143287,1749489048352,-519.89,0.00019506,2]
[365143288,1749489048362,-621.8,0.00019506,2]
[365143289,1749489048372,-490.0,0.00019506,2]
[365143290,1749489048381,-490.0,0.00019506,2]
[365143291,1749489048391,-601.37,0.00019506,2]
[365143292,1749489048401,-515.62986113,0.00019506,2]
[365143293,1749489048411,-490.0,0.00019506,2]
[365143294,1749489048421,-490.0,0.00019506,2]
[365143295,1749489048430,-490.0,0.00019506,2]
[365143296,1749489048440,-490.0,0.00019506,2]
[365143297,1749489048449,-490.0,0.00019506,2]
[365143298,1749489048459,-490.0,0.00019506,2]
[365143299,1749489048469,-490.0,0.00019506,2]
[365143300,1749489048479,-490.0,0.00019506,2]
[365143301,1749489048489,-490.0,0.00019506,2]
[365143302,1749489048499,-157.72449,0.00019506,2]
[365143303,1749489048510,-490.0,0.00019506,2]
[365143304,1749489048520,-490.0,0.00019506,2]
[365143305,1749489048530,-176.37241,0.00019506,2]
[365143306,1749489048541,-509.15,0.00019506,2]
[365143307,1749489048552,-490.0,0.00019506,2]
[365143308,1749489048562,-1085.41,0.00019506,2]
[365143309,1749489048572,-899.15,0.00019506,2]
[365143310,1749489048582,-490.0,0.00019506,2]
[365143311,1749489048592,-490.0,0.00019506,2]
[365143312,1749489048601,-507.55,0.00019506,2]
[365143313,1749489048611,-490.0,0.00019506,2]
[365143314,1749489048621,-447.48451998,0.00019506,2]
[365143315,1749489048631,-490.0,0.00019506,2]
[365143316,1749489048641,-657.01,0.00019506,2]
[365143317,1749489048652,-950.08,0.00019506,2]
[365143318,1749489048664,-490.0,0.00019506,2]
[365143319,1749489048678,-490.0,0.00019506,2]
[365143320,1749489048690,-490.0,0.00019506,2]
[365143321,1749489048700,-490.0,0.00019506,2]
[365143322,1749489048711,-490.0,0.00019506,2]
[365143323,1749489048720,-576.02,0.00019506,2]
[365143324,1749489048730,-490.0,0.00019506,2]
[365143325,1749489048741,-490.0,0.00019506,2]
[365143326,1749489048751,-490.0,0.00019506,2]
[365143327,1749489048762,-541.73,0.00019506,2]
[365143328,1749489048772,-490.0,0.00019506,2]
[365143329,1749489048782,-652.75,0.00019506,2]
[365143330,1749489048791,-490.0,0.00019506,2]
[365143331,1749489048802,-490.0,0.00019506,2]
[365143332,1749489048812,-490.0,0.00019506,2]
[365143333,1749489048822,-490.0,0.00019506,2]
[365143334,1749489048833,-490.0,0.00019506,2]
[365143335,1749489048843,-490.0,0.00019506,2]
[365143336,1749489048853,-490.0,0.00019506,2]
[365143337,1749489048863,-490.0,0.00019506,2]
[365143338,1749489048873,-819.61,0.00019506,2]
[365143339,1749489048884,-490.0,0.00019506,2]
[365143340,1749489048894,-490.0,0.00019506,2]
[365143341,1749489048904,-491.5,0.00019506,2]
[365143342,1749489048913,-358.03321901,0.00019506,2]
[365143343,1749489048923,-490.0,0.00019506,2]
[365143344,1749489048933,-490.0,0.00019506,2]
[365143345,1749489048944,-490.0,0.00019506,2]
[365143346,1749489048954,-490.0,0.00019506,2]
[365143347,1749489048965,-490.0,0.00019506,2]
[365143348,1749489048976,-490.0,0.00019506,2]
[365143349,1749489048986,-490.0,0.00019506,2]
[365143350,1749489048996,-490.0,0.00019506,2]
[365143351,1749489049008,-490.0,0.00019506,2]
[365143352,1749489049018,-557.16,0.00019506,2]
[365143353,1749489049029,-490.0,0.00019506,2]
[365143354,1749489049039,-1140.11,0.00019506,2]
[365143355,1749489049049,-490.0,0.00019506,2]
[365143356,1749489049060,-490.0,0.00019506,2]
[365143357,1749489049071,-490.0,0.00019506,2]
[365143358,1749489049081,-490.0,0.00019506,2]
[365143359,1749489049091,-612.9,0.00019506,2]
[365143360,1749489049102,-484.63201577,0.00019506,2]
[365143361,1749489049113,-490.0,0.00019506,2]
[365143362,1749489049123,-490.0,0.00019506,2]
[365143363,1749489049132,-540.0895654,0.00019506,2]
[365143364,1749489049143,-490.0,0.00019506,2]
[365143365,1749489049153,-490.0,0.00019506,2]
[365143366,1749489049164,-490.0,0.00019506,2]
[365143367,1749489049173,-490.0,0.00019506,2]
[365143368,1749489049185,-723.74,0.00019506,2]
[365143369,1749489049194,-490.0,0.00019506,2]
[365143370,1749489049204,-490.0,0.00019506,2]
[365143371,1749489049213,-490.0,0.00019506,2]
[365143372,1749489049223,-646.0,0.00019506,2]
[365143373,1749489049234,-490.0,0.00019506,2]
[365143374,1749489049244,-490.0,0.00019506,2]
[365143375,1749489049253,-490.0,0.00019506,2]
[365143376,1749489049264,-490.0,0.00019506,2]
[365143377,1749489049274,-490.0,0.00019506,2]
[365143378,1749489049283,-490.0,0.00019506,2]
[365143379,1749489049294,-1151.71,0.00019506,2]
[365143380,1749489049303,-490.0,0.00019506,2]
[365143381,1749489049312,-490.0,0.00019506,2]
[365143382,1749489049322,-940.33,0.00019506,2]
[365143383,1749489049333,-711.75,0.00019506,2]
[365143384,1749489049342,-490.0,0.00019506,2]
[365143385,1749489049352,-985.77,0.00019506,2]
[365143386,1749489049362,-490.0,0.00019506,2]
[365143387,1749489049372,-969.98,0.00019506,2]
[365143388,1749489049382,-490.0,0.00019506,2]
[365143389,1749489049392,-490.0,0.00019506,2]
[365143390,1749489049402,-1249.55,0.00019506,2]
[365143391,1749489049412,-279.92042378,0.00019506,2]
[365143392,1749489049422,-1308.65,0.00019506,2]
[365143393,1749489049431,-490.0,0.00019506,2]
[365143394,1749489049441,-490.0,0.00019506,2]
[365143395,1749489049451,-490.0,0.00019506,2]
[365143396,1749489049460,-490.0,0.00019506,2]
[365143397,1749489049470,-542.14,0.00019506,2]
[365143398,1749489049480,-490.0,0.00019506,2]
[365143399,1749489049490,-912.23,0.00019506,2]
[365143400,1749489049500,-490.0,0.00019506,2]
[365143401,1749489049510,-787.85,0.00019506,2]
[365143402,1749489049520,-578.65,0.00019506,2]
[365143403,1749489049530,-822.52,0.00019506,2]
[365143404,1749489049540,-490.0,0.00019506,2]
[365143405,1749489049549,-490.0,0.00019506,2]
[365143406,1749489049561,-490.0,0.00019506,2]
[365143407,1749489049571,-835.61,0.00019506,2]
[365143408,1749489049581,-631.56,0.00019506,2]
[365143409,1749489049592,-297.60360687,0.00019506,2]
[365143410,1749489049601,-1101.74,0.00019506,2]
[365143411,1749489049611,-490.0,0.00019506,2]
[365143412,1749489049622,-490.0,0.00019506,2]
[365143413,1749489049632,-490.0,0.00019506,2]
[365143414,1749489049643,-490.0,0.00019506,2]
[365143415,1749489049653,-490.0,0.00019506,2]
[365143416,1749489049664,-493.9,0.00019506,2]
[365143417,1749489049679,-490.0,0.00019506,2]
[365143418,1749489049690,-565.89,0.00019506,2]
[365143419,1749489049700,-634.89,0.00019506,2]
[365143420,1749489049711,-490.0,0.00019506,2]
[365143421,1749489049721,-490.0,0.00019506,2]
[365143422,1749489049731,-490.0,0.00019506,2]
[365143423,1749489049742,-979.26,0.00019506,2]
[365143424,1749489049754,-632.06,0.00019506,2]
[365143425,1749489049765,-490.0,0.00019506,2]
[365143426,1749489049777,-490.0,0.00019506,2]
[365143427,1749489049787,-1176.04,0.00019506,2]
[365143428,1749489049797,-490.0,0.00019506,2]
[365143429,1749489049808,-662.8,0.00019506,2]
[365143430,1749489049819,-630.19201705,0.00019506,2]
[365143431,1749489049829,-794.85,0.00019506,2]
[365143432,1749489049840,-490.0,0.00019506,2]
[365143433,1749489049851,-1339.87,0.00019506,2]
[365143434,1749489049862,-490.0,0.00019506,2]
[365143435,1749489049873,-490.0,0.00019506,2]
[365143436,1749489049884,-724.25,0.00019506,2]
[365143437,1749489049894,-490.0,0.00019506,2]
[365143438,1749489049903,-586.68,0.00019506,2]
[365143439,1749489049914,-1259.46,0.00019506,2]
[365143440,1749489049925,-490.0,0.00019506,2]
[365143441,1749489049935,-490.0,0.00019506,2]
[365143442,1749489049946,-490.0,0.00019506,2]
[365143443,1749489049957,-548.25,0.00019506,2]
[365143444,1749489049968,-490.0,0.00019506,2]
[365143445,1749489049980,-516.97,0.00019506,2]
[365143446,1749489049991,-490.0,0.00019506,2]
[365143447,1749489050001,-1370.2,0.00019506,2]
[365143448,1749489050013,-804.72,0.00019506,2]
[365143449,1749489050024,-668.64,0.00019506,2]
[365143450,1749489050035,-490.0,0.00019506,2]
[365143451,1749489050045,-490.0,0.00019506,2]
[365143452,1749489050058,-635.67,0.00019506,2]
[365143453,1749489050068,-490.0,0.00019506,2]
[365143454,1749489050079,-490.0,0.00019506,2]
[365143455,1749489050089,-671.75,0.00019506,2]
[365143456,1749489050100,-490.0,0.00019506,2]
[365143457,1749489050110,-293.73583877,0.00019506,2]
[365143458,1749489050121,-615.63,0.00019506,2]
[365143459,1749489050131,-490.0,0.00019506,2]
[365143460,1749489050143,-502.65171895,0.00019506,2]
[365143461,1749489050152,-628.45,0.00019506,2]
[365143462,1749489050162,-747.29,0.00019506,2]
[365143463,1749489050172,-490.0,0.00019506,2]
[365143464,1749489050182,-490.0,0.00019506,2]
[365143465,1749489050191,-490.0,0.00019506,2]
[365143466,1749489050201,-490.0,0.00019506,2]
[365143467,1749489050210,-704.76,0.00019506,2]
[365143468,1749489050219,-490.0,0.00019506,2]
[365143469,1749489050228,-1538.71,0.00019506,2]
[365143470,1749489050239,-490.0,0.00019506,2]
[365143471,1749489050249,-1171.01,0.00019506,2]
[365143472,1749489050259,-1384.03,0.00019506,2]
[365143473,1749489050270,-3580.41,0.00019506,2]
[365143474,1749489050279,-1003.2,0.00019506,2]
[365143475,1749489050289,-490.0,0.00019506,2]
[365143476,1749489050299,-490.0,0.00019506,2]
[365143477,1749489050310,-490.0,0.00019506,2]
[365143478,1749489050321,-2674.89,0.00019506,2]
[365143479,1749489050331,-753.15,0.00019506,2]
[365143480,1749489050340,-518.7,0.00019506,2]
[365143481,1749489050350,-490.0,0.00019506,2]
[365143482,1749489050360,-490.0,0.00019506,2]
[365143483,1749489050370,-1307.0,0.00019506,2]
[365143484,1749489050379,-490.0,0.00019506,2]
[365143485,1749489050389,-534.65,0.00019506,2]
[365143486,1749489050399,-1190.29,0.00019506,2]
[365143487,1749489050409,-912.87,0.00019506,2]
[365143488,1749489050418,-1580.72,0.00019506,2]
[365143489,1749489050428,-490.0,0.00019506,2]
[365143490,1749489050437,-764.18,0.00019506,2]
[365143491,1749489050447,-490.0,0.00019506,2]
[365143492,1749489050457,-490.0,0.00019506,2]
[365143493,1749489050467,-490.0,0.00019506,2]
[365143494,1749489050476,-1492.5,0.00019506,2]
[365143495,1749489050486,-490.0,0.00019506,2]
[365143496,1749489050496,-1997.33,0.00019506,2]
[365143497,1749489050505,-490.0,0.00019506,2]
[365143498,1749489050514,-617.65,0.00019506,2]
[365143499,1749489050524,-944.02,0.00019506,2]
[365143500,1749489050532,-1116.7,0.00019506,2]
[365143501,1749489050542,-1151.29,0.00019506,2]
[365143502,1749489050550,-756.37,0.00019506,2]
[365143503,1749489050561,-1299.38,0.00019506,2]
[365143504,1749489050571,-2592.19,0.00019506,2]
[365143505,1749489050580,-813.45,0.00019506,2]
[365143506,1749489050589,-876.82,0.00019506,2]
[365143507,1749489050599,-901.43,0.00019506,2]
[365143508,1749489050607,-490.0,0.00019506,2]
[365143509,1749489050617,-490.0,0.00019506,2]
[365143510,1749489050627,-502.67,0.00019506,2]
[365143511,1749489050636,-1000.0,0.00019506,2]
[365143512,1749489050646,-1093.18,0.00019506,2]
[365143513,1749489050655,-490.0,0.00019506,2]
[365143514,1749489050664,-490.0,0.00019506,2]
[365143515,1749489050677,-949.47,0.00019506,2]
[365143516,1749489050685,-1187.9,0.00019506,2]
[365143517,1749489050692,-615.23,0.00019506,2]
[365143518,1749489050700,-678.94,0.00019506,2]
[365143519,1749489050708,-1903.76,0.00019506,2]
[365143520,1749489050715,-2229.16,0.00019506,2]
[365143521,1749489050721,-490.0,0.00019506,2]
[365143522,1749489050729,-726.14,0.00019506,2]
[365143523,1749489050738,-496.57,0.00019506,2]
[365143524,1749489050748,-490.0,0.00019506,2]
[365143525,1749489050757,-490.0,0.00019506,2]
[365143526,1749489050766,-1416.4,0.00019506,2]
[365143527,1749489050776,-733.56,0.00019506,2]
[365143528,1749489050786,-1141.53,0.00019506,2]
[365143529,1749489050796,-17424.76,0.00019506,2]
[365143530,1749489050806,-685.79,0.00019506,2]
[365143531,1749489050816,-1857.77,0.00019506,2]
[365143532,1749489050825,-642.58,0.00019506,2]
[365143533,1749489050835,-490.0,0.00019506,2]
[365143534,1749489050845,-490.0,0.00019506,2]
[365143535,1749489050855,-490.0,0.00019506,2]
[365143536,1749489050864,-1629.16,0.00019506,2]
[365143537,1749489050873,-490.0,0.00019506,2]
[365143538,1749489050882,-490.0,0.00019506,2]
[365143539,1749489050892,-807.59,0.00019506,2]
[365143540,1749489050901,-941.88,0.00019506,2]
[365143541,1749489050911,-2782.26,0.00019506,2]
[365143542,1749489050921,-4445.91,0.00019506,2]
[365143543,1749489050930,-733.72,0.00019506,2]
[365143544,1749489050940,-3892.94,0.00019506,2]
[365143545,1749489050949,-901.05,0.00019506,2]
[365143546,1749489050958,-490.0,0.00019506,2]
[365143547,1749489050968,-925.29,0.00019506,2]
[365143548,1749489050978,-628.99,0.00019506,2]
[365143549,1749489050987,-1004.83,0.00019506,2]
[365143550,1749489050997,-529.57,0.00019506,2]
[365143551,1749489051006,-668.13,0.00019506,2]
[365143552,1749489051016,-615.04,0.00019506,2]
[365143553,1749489051025,-809.46,0.00019506,2]
[365143554,1749489051035,-1157.54,0.00019506,2]
[365143555,1749489051044,-654.08,0.00019506,2]
[365143556,1749489051054,-490.0,0.00019506,2]
[365143557,1749489051064,-872.18,0.00019506,2]
[365143558,1749489051074,-644.81,0.00019506,2]
[365143559,1749489051084,-490.0,0.00019506,2]
[365143560,1749489051091,-940.01,0.00019506,2]
[365143561,1749489051098,-490.0,0.00019506,2]
[365143562,1749489051107,-833.02,0.00019506,2]
[365143563,1749489051116,-1047.99,0.00019506,2]
[365143564,1749489051126,-550.43,0.00019506,2]
[365143565,1749489051136,-490.0,0.00019506,2]
[365143566,1749489051146,-490.0,0.00019506,2]
[365143567,1749489051156,-5185.43,0.00019506,2]
[365143568,1749489051417,-490.0,0.00019506,2]
[365143569,1749489051430,-490.0,0.00019506,2]
[365143570,1749489051439,-797.43,0.00019506,2]
[365143571,1749489051449,-1213.7,0.00019506,2]
[365143572,1749489051458,-490.0,0.00019506,2]
[365143573,1749489051467,-648.9,0.00019506,2]
[365143574,1749489051476,-526.63,0.00019506,2]
[365143575,1749489051484,-619.94906902,0.00019506,2]
[365143576,1749489051492,-814.82,0.00019506,2]
[365143577,1749489051500,-490.0,0.00019506,2]
[365143578,1749489051508,-490.0,0.00019506,2]
[365143579,1749489051517,-846.19,0.00019506,2]
[365143580,1749489051526,-602.85,0.00019506,2]
[365143581,1749489051534,-874.08,0.00019506,2]
[365143582,1749489051543,-490.0,0.00019506,2]
[365143583,1749489051553,-2470.7,0.00019506,2]
[365143584,1749489051562,-490.0,0.00019506,2]
[365143585,1749489051570,-490.0,0.00019506,2]
[365143586,1749489051579,-1237.17987209,0.00019506,2]
[365143587,1749489052050,250.0,0.00017479,2]
[365143588,1749489052289,-490.0,0.00019178,2]
[365143589,1749489052299,-490.0,0.00019342,2]
[365143590,1749489052311,-974.51012791,0.00019506,2]
[365143591,1749489052320,-554.28,0.00019506,2]
[365143592,1749489052329,-1176.08,0.00019506,2]
[365143593,1749489052338,-490.0,0.00019506,2]
[365143594,1749489052348,-500.0,0.00019506,2]
[365143595,1749489052356,-759.92,0.00019506,2]
[365143596,1749489052365,-1070.35,0.00019506,2]
[365143597,1749489052374,-490.0,0.00019506,2]
[365143598,1749489052382,-501.95,0.00019506,2]
[365143599,1749489052391,-586.66,0.00019506,2]
[365143600,1749489052414,-1022.97,0.00019506,2]
[365143601,1749489052425,-1610.69,0.00019506,2]
[365143602,1749489052435,-1770.86,0.00019506,2]
[365143603,1749489052445,-1673.59,0.00019506,2]
[365143604,1749489052455,-490.0,0.00019506,2]
[365143605,1749489052465,-556.01559423,0.00019506,2]
[365143606,1749489052475,-1126.64,0.00019506,2]
[365143607,1749489052485,-490.0,0.00019506,2]
[365143608,1749489052495,-490.0,0.00019506,2]
[365143609,1749489052505,-490.0,0.00019506,2]
[365143610,1749489052515,-490.0,0.00019506,2]
[365143611,1749489052524,-2500.39,0.00019506,2]
[365143612,1749489052534,-790.99,0.00019506,2]
[365143613,1749489052544,-490.0,0.00019506,2]
[365143614,1749489052555,-490.0,0.00019506,2]
[365143615,1749489052565,-505.03,0.00019506,2]
[365143616,1749489052575,-1641.67,0.00019506,2]
[365143617,1749489052585,-490.0,0.00019506,2]
[365143618,1749489052595,-490.0,0.00019506,2]
[365143619,1749489052605,-737.78,0.00019506,2]
[365143620,1749489052614,-1103.99,0.00019506,2]
[365143621,1749489052624,-490.0,0.00019506,2]
[365143622,1749489052634,-495.06,0.00019506,2]
[365143623,1749489052643,-1222.34,0.00019506,2]
[365143624,1749489052653,-490.0,0.00019506,2]
[365143625,1749489052663,-490.0,0.00019506,2]
[365143626,1749489052677,-490.0,0.00019506,2]
[365143627,1749489052687,-490.0,0.00019506,2]
[365143628,1749489052697,-490.0,0.00019506,2]
[365143629,1749489052706,-981.28,0.00019506,2]
[365143630,1749489052716,-490.0,0.00019506,2]
[365143631,1749489052726,-981.28,0.00019506,2]
[365143632,1749489052736,-1885.27,0.00019506,2]
[365143633,1749489052748,-1015.12,0.00019506,2]
[365143634,1749489052758,-549.87,0.00019506,2]
[365143635,1749489052768,-490.0,0.00019506,2]
[365143636,1749489052777,-618.18,0.00019506,2]
[365143637,1749489052787,-2989.66,0.00019506,2]
[365143638,1749489052798,-490.0,0.00019506,2]
[365143639,1749489052809,-490.0,0.00019506,2]
[365143640,1749489052819,-490.0,0.00019506,2]
[365143641,1749489052829,-2352.72,0.00019506,2]
[365143642,1749489052839,-1124.92,0.00019506,2]
[365143643,1749489052848,-490.0,0.00019506,2]
[365143644,1749489052858,-1029.02,0.00019506,2]
[365143645,1749489052868,-492.39,0.00019506,2]
[365143646,1749489052877,-1857.73,0.00019506,2]
[365143647,1749489052887,-362.40199456,0.00019506,2]
[365143648,1749489052897,-1463.31,0.00019506,2]
[365143649,1749489052907,-490.0,0.00019506,2]
[365143650,1749489052916,-490.0,0.00019506,2]
[365143651,1749489052926,-11303.479291,0.00019506,2]
[365143652,1749489052936,-868.64,0.00019506,2]
[365143653,1749489052945,-490.0,0.00019506,2]
[365143654,1749489052955,-1892.45,0.00019506,2]
[365143655,1749489052965,-536.68,0.00019506,2]
[365143656,1749489052974,-1213.07,0.00019506,2]
[365143657,1749489052983,-565.48,0.00019506,2]
[365143658,1749489052993,-490.0,0.00019506,2]
[365143659,1749489053002,-1258.64,0.00019506,2]
[365143660,1749489053012,-900.68,0.00019506,2]
[365143661,1749489053022,-1011.07,0.00019506,2]
[365143662,1749489053032,-490.0,0.00019506,2]
[365143663,1749489053041,-1498.59,0.00019506,2]
[365143664,1749489053050,-683.3,0.00019506,2]
[365143665,1749489053063,-490.0,0.00019506,2]
[365143666,1749489053073,-490.0,0.00019506,2]
[365143667,1749489053083,-874.73,0.00019506,2]
[365143668,1749489053093,-490.0,0.00019506,2]
[365143669,1749489053102,-490.0,0.00019506,2]
[365143670,1749489053119,-490.0,0.00019506,2]
[365143671,1749489053129,-490.0,0.00019506,2]
[365143672,1749489053139,-500.0,0.00019506,2]
[365143673,1749489053148,-992.0,0.00019506,2]
[365143674,1749489053158,-2843.0,0.00019506,2]
[365143675,1749489053167,-6107.8508951,0.00019507,4]
[365143676,1749489053177,-434463.4039709,0.00019507,4]
[365143677,1749489053798,-2564.99999999,0.00019507,4]
[365143678,1749489053814,-893.53349999,0.00019507,4]
[365143679,1749489053833,-577.29999742,0.00019507,4]
[365143680,1749489053845,-23079.50832428,0.00019507,4]
[365143681,1749489053855,-300.762,0.00019507,4]
[365143683,1749489162502,150.0,0.00018011,2]
[365143684,1749489217750,194.53,0.00016712,2]
[365143685,1749489233917,1387.73,0.000179,2]
[365143687,1749489303101,266.0,0.0002415,120]
[365143688,1749489409703,783.11431,0.00024649,120]
[365143689,1749489492102,200.0,0.00017659,2]
[365143690,1749489581325,256.0,0.00017659,2]
[365143691,1749489726723,9051.7044534,0.00024,120]
[365143692,1749489852082,200.0,0.00017745,2]
[365143693,1749489857107,445.69,0.00013699,2]
[365143695,1749489910695,836.30571687,0.000154,2]
[365143696,1749489920099,670.70624452,9e-05,2]
[365143697,1749489933068,1611.7376373,0.0002,120]
[365143698,1749489937507,16125.2315575,9e-05,2]
[365143699,1749490032138,3027.13589865,0.0002301,120]
[365143700,1749490074125,2020.0,0.0002,120]
[365143701,1749490093999,298.48087799,0.0001439,2]
[365143702,1749490101136,1105.47,0.000161,2]
[365143703,1749490106457,174.87941646,7.888e-05,2]
[365143704,1749490106785,324.73406128,0.000178,3]
[365143705,1749490113719,190.29708509,0.0002,120]
[365143706,1749490119467,2601.0,0.000145,120]
[365143707,1749490123108,1370.06542519,0.00010136,2]
[365143708,1749490123326,1237.74270302,0.00013368,2]
[365143732,1749490212218,200.0,0.00017857,2]
[365143742,1749490231518,-1000.0,0.00018173,2]
[365143743,1749490231532,-250.0,0.00018184,2]
[365143744,1749490231545,-70.65514094,0.00018196,2]
[365143745,1749490231561,-313.46485906,0.00018196,2]
[365143746,1749490231574,-170.33,0.00018196,2]
[365143747,1749490231587,-881.26,0.00018237,2]
[365143748,1749490231600,-300.0,0.00018332,2]
[365143749,1749490231612,-300.0,0.00018332,2]
[365143750,1749490231626,-1200.0,0.00018332,2]
[365143751,1749490231640,-3350.18066557,0.00018333,2]
[365143752,1749490231655,-2453.01619721,0.00018333,2]
[365143753,1749490231669,-5669.11291033,0.00018333,2]
[365143754,1749490231689,-1107.64615845,0.00018333,2]
[365143755,1749490231704,-1819.99994,0.00018333,2]
[365143756,1749490231718,-9500.04412844,0.00018333,2]
[365143757,1749490231730,-3834.17,0.00018356,2]
[365143758,1749490231743,-1105.47,0.00018364,2]
[365143759,1749490231754,-159.69768185,0.0001841,2]
[365143760,1749490231767,-163.61,0.00018411,3]
[365143761,1749490231779,-166.97,0.00018437,2]
[365143762,1749490231791,-406.59,0.00018441,2]
[365143763,1749490231803,-1957.856,0.00018452,2]
[365143764,1749490231816,-207.4,0.00018452,2]
[365143765,1749490231828,-2030.296672,0.00018507,2]
[365143766,1749490231840,-2105.41764887,0.00018562,2]
[365143767,1749490231852,-1163.41,0.00018767,2]
[365143768,1749490231863,-153.90645894,0.000189,2]
[365143769,1749490231875,-264.89926141,0.000189,2]
[365143770,1749490231887,-500.0,0.00018932,2]
[365143771,1749490231898,-264.89926123,0.00018934,2]
[365143772,1749490231909,-264.89926123,0.00018969,2]
[365143774,1749490231920,-200.0,0.00018996,3]
[365143775,1749490231930,-250.0,0.00019,2]
[365143776,1749490231940,-264.89926123,0.00019003,2]
[365143777,1749490231952,-228.64315287,0.00019014,2]
[365143779,1749490231963,-264.89926123,0.00019038,2]
[365143781,1749490231975,-228.64315287,0.00019068,2]
[365143783,1749490231987,-264.89926123,0.00019072,2]
[365143785,1749490231999,-2958.3982513,0.00019078,2]
[365143787,1749490232011,-330.9899443,0.00019078,2]
[365143790,1749490232022,-264.89926123,0.00019107,2]
[365143791,1749490232037,-264.89926123,0.00019141,2]
[365143792,1749490232048,-228.64315287,0.00019151,2]
[365143793,1749490232060,-151.0,0.00019166,2]
[365143794,1749490232071,-666.72095861,0.00019166,2]
[365143795,1749490232084,-4974.01295171,0.00019168,2]
[365143796,1749490232099,-1278.578496,0.00019168,2]
[365143797,1749490232159,-537.379842,0.00019168,2]
[365143799,1749490232174,-1132.7657,0.00019168,2]
[365143836,1749490238191,-6047.04,0.00019168,2]
[365143843,1749490239568,-545.1806404,0.00019168,2]
[365143844,1749490239626,-2576.79315165,0.00019168,2]
[365143845,1749490239683,-955.97387497,0.00019168,2]
[365143846,1749490239692,-2525.73911783,0.00019169,2]
[365143847,1749490239794,-432.65913347,0.00019169,2]
[365143848,1749490239804,-330.9899443,0.00019169,2]
[365143849,1749490239813,-237.87449453,0.00019172,2]
[365143850,1749490239850,-221.47233047,0.00019172,2]
[365143851,1749490239859,-300.0,0.00019172,2]
[365143852,1749490239868,-85.36718023,0.00019172,4]
[365143853,1749490239905,-317.44149084,0.00019172,4]
[365144106,1749490245946,-197.19132893,0.00019172,4]
[365144107,1749490245956,-264.21092403,0.00019173,2]
[365144108,1749490245967,-236.93453707,0.00019173,2]
[365144109,1749490245976,-500.0,0.00019173,2]
[365144110,1749490245986,-499.68561917,0.00019173,2]
[365144111,1749490245995,-159.89902761,0.00019173,2]
[365144112,1749490246005,-159.8991195,0.00019173,2]
[365144113,1749490246014,-264.89926123,0.00019176,2]
[365144114,1749490246023,-4526.17058512,0.00019177,2]
[365144115,1749490246033,-1000.0,0.00019177,2]
[365144116,1749490246046,-500.0,0.00019177,2]
[365144117,1749490246055,-500.0,0.00019177,2]
[365144118,1749490246065,-201.00606913,0.00019177,2]
[365144119,1749490246074,-500.0,0.00019177,2]
[365144120,1749490246085,-500.0,0.00019177,2]